[Event "Chessable Masters - Torneo preliminare"]
[White "Makarian, Rudik"]
[Black "Agrest, Evgenij"]
[WhiteFideId "44105681"]
[BlackFideId "1705024"]
[WhiteElo "2462"]
[BlackElo "2576"]
[Result "1-0"]
[Round "7"]
[TimeControl "600+2"]
[Date "2023.03.13"]
[WhiteClock "0:06:19"]
[BlackClock "0:02:07"]

1. d4 {[%clk 0:10:01]}  d5 {[%clk 0:09:58]} 2. c4 {[%clk 0:10:03]}  c6 {[%clk 0:09:58]} 3. Nf3 {[%clk 0:10:05]}  Nf6 {[%clk 0:09:58]} 4. Nc3 {[%clk 0:10:06]}  e6 {[%clk 0:09:58]} 5. g3 {[%clk 0:10:08]}  Nbd7 {[%clk 0:09:53]} 6. Bg2 {[%clk 0:10:09]}  Bb4 {[%clk 0:09:54]} 7. O-O {[%clk 0:10:06]}  O-O {[%clk 0:09:54]} 8. a3 {[%clk 0:09:40]}  Bxc3 {[%clk 0:09:49]} 9. bxc3 {[%clk 0:09:42]}  b5 {[%clk 0:09:17]} 10. c5 {[%clk 0:09:26]}  Ne4 {[%clk 0:09:11]} 11. Qc2 {[%clk 0:08:55]}  Qa5 {[%clk 0:08:49]} 12. Ng5 {[%clk 0:08:37]}  Nxg5 {[%clk 0:08:28]} 13. Bxg5 {[%clk 0:08:39]}  f6 {[%clk 0:07:01]} 14. Bf4 {[%clk 0:08:39]}  e5 {[%clk 0:06:56]} 15. Bd2 {[%clk 0:08:40]}  Qc7 {[%clk 0:06:32]} 16. e4 {[%clk 0:08:38]}  dxe4 {[%clk 0:05:27]} 17. Bxe4 {[%clk 0:08:36]}  g6 {[%clk 0:04:54]} 18. Bxg6 {[%clk 0:08:17]}  hxg6 {[%clk 0:04:46]} 19. Qxg6+ {[%clk 0:08:19]}  Kh8 {[%clk 0:04:44]} 20. Qh5+ {[%clk 0:08:07]}  Kg8 {[%clk 0:04:30]} 21. Bh6 {[%clk 0:07:33]}  Nxc5 {[%clk 0:02:58]} 22. Qg6+ {[%clk 0:07:27]}  Kh8 {[%clk 0:02:58]} 23. Bxf8 {[%clk 0:07:27]}  Ne6 {[%clk 0:02:55]} 24. Qxf6+ {[%clk 0:07:27]}  Kg8 {[%clk 0:02:55]} 25. Bc5 {[%clk 0:07:19]}  Qh7 {[%clk 0:02:40]} 26. Rfe1 {[%clk 0:07:08]}  e4 {[%clk 0:02:29]} 27. Qe5 {[%clk 0:07:07]}  Nxc5 {[%clk 0:02:25]} 28. Qg5+ {[%clk 0:06:57]}  Kf7 {[%clk 0:02:17]} 29. dxc5 {[%clk 0:06:44]}  Bf5 {[%clk 0:02:15]} 30. Rad1 {[%clk 0:06:45]}  Rg8 {[%clk 0:02:13]} 31. Qf4 {[%clk 0:06:46]}  Qh3 {[%clk 0:02:07]} 32. Rd7+ {[%clk 0:06:19]} 1-0


[Site "Internet"]

[Event "Chessable Masters - Torneo preliminare"]
[White "Henriquez Villagra, Cristobal"]
[Black "Sharapov, Evgeny"]
[WhiteFideId "3409350"]
[BlackFideId "14103133"]
[WhiteElo "2574"]
[BlackElo "2337"]
[Result "1-0"]
[Round "7"]
[TimeControl "600+2"]
[Date "2023.03.13"]
[WhiteClock "0:07:45"]
[BlackClock "0:08:06"]

1. e4 {[%clk 0:10:01]}  c6 {[%clk 0:10:01]} 2. d4 {[%clk 0:09:53]}  d5 {[%clk 0:10:01]} 3. f3 {[%clk 0:09:54]}  e6 {[%clk 0:10:00]} 4. Nc3 {[%clk 0:09:54]}  Nf6 {[%clk 0:10:01]} 5. a3 {[%clk 0:09:49]}  Be7 {[%clk 0:09:59]} 6. Be3 {[%clk 0:09:44]}  O-O {[%clk 0:10:00]} 7. Be2 {[%clk 0:09:14]}  b6 {[%clk 0:10:00]} 8. e5 {[%clk 0:09:11]}  Nfd7 {[%clk 0:10:01]} 9. f4 {[%clk 0:09:13]}  Ba6 {[%clk 0:10:00]} 10. Bf3 {[%clk 0:08:58]}  f5 {[%clk 0:09:43]} 11. Kf2 {[%clk 0:08:26]}  Kh8 {[%clk 0:09:34]} 12. h4 {[%clk 0:08:25]}  Bb7 {[%clk 0:09:04]} 13. Nce2 {[%clk 0:08:20]}  c5 {[%clk 0:09:04]} 14. Nh3 {[%clk 0:08:19]}  cxd4 {[%clk 0:08:48]} 15. Nxd4 {[%clk 0:08:17]}  Nc5 {[%clk 0:08:49]} 16. Ng5 {[%clk 0:07:49]}  Bxg5 {[%clk 0:08:26]} 17. hxg5 {[%clk 0:07:50]}  Qe7 {[%clk 0:08:13]} 18. b4 {[%clk 0:07:45]}  Ne4+ {[%clk 0:08:12]} 19. Bxe4 {[%clk 0:07:46]}  dxe4 {[%clk 0:08:05]} 20. Rxh7+ {[%clk 0:07:42]}  Kxh7 {[%clk 0:08:05]} 21. Qh5+ {[%clk 0:07:43]}  Kg8 {[%clk 0:08:06]} 22. g6 {[%clk 0:07:45]} 1-0


[Site "Internet"]

[Event "Chessable Masters - Torneo preliminare"]
[White "Iniyan, P"]
[Black "Volkov, Sergey"]
[WhiteFideId "25002767"]
[BlackFideId "4122763"]
[WhiteElo "2441"]
[BlackElo "2496"]
[Result "0-1"]
[Round "7"]
[TimeControl "600+2"]
[Date "2023.03.13"]
[WhiteClock "0:02:42"]
[BlackClock "0:02:38"]

1. d4 {[%clk 0:09:23]}  d5 {[%clk 0:09:08]} 2. c4 {[%clk 0:09:25]}  c6 {[%clk 0:09:06]} 3. Nf3 {[%clk 0:09:26]}  Nf6 {[%clk 0:09:05]} 4. Nc3 {[%clk 0:09:26]}  a6 {[%clk 0:09:05]} 5. g3 {[%clk 0:09:24]}  b5 {[%clk 0:09:03]} 6. c5 {[%clk 0:09:24]}  g6 {[%clk 0:08:59]} 7. Bg2 {[%clk 0:09:25]}  Bg7 {[%clk 0:09:00]} 8. O-O {[%clk 0:09:26]}  O-O {[%clk 0:09:01]} 9. Bf4 {[%clk 0:09:27]}  a5 {[%clk 0:08:57]} 10. Re1 {[%clk 0:09:24]}  Nbd7 {[%clk 0:08:31]} 11. e4 {[%clk 0:09:13]}  Nxe4 {[%clk 0:08:27]} 12. Nxe4 {[%clk 0:09:12]}  dxe4 {[%clk 0:08:27]} 13. Rxe4 {[%clk 0:09:14]}  Nf6 {[%clk 0:08:27]} 14. Re1 {[%clk 0:09:02]}  Bg4 {[%clk 0:08:19]} 15. Be5 {[%clk 0:08:54]}  e6 {[%clk 0:08:09]} 16. Qc1 {[%clk 0:08:29]}  Bxf3 {[%clk 0:08:08]} 17. Bxf3 {[%clk 0:08:31]}  Nd5 {[%clk 0:08:07]} 18. h4 {[%clk 0:08:27]}  Ra7 {[%clk 0:07:54]} 19. a3 {[%clk 0:07:47]}  Bxe5 {[%clk 0:07:32]} 20. dxe5 {[%clk 0:07:49]}  f6 {[%clk 0:07:32]} 21. Bg4 {[%clk 0:07:17]}  f5 {[%clk 0:07:06]} 22. Bh3 {[%clk 0:07:17]}  Rd7 {[%clk 0:07:02]} 23. Rd1 {[%clk 0:07:14]}  Qe7 {[%clk 0:06:49]} 24. f4 {[%clk 0:07:05]}  Rfd8 {[%clk 0:06:43]} 25. Kh2 {[%clk 0:06:52]}  h6 {[%clk 0:06:19]} 26. Rd4 {[%clk 0:06:46]}  g5 {[%clk 0:06:11]} 27. fxg5 {[%clk 0:06:30]}  hxg5 {[%clk 0:06:11]} 28. Qxg5+ {[%clk 0:05:52]}  Qxg5 {[%clk 0:06:10]} 29. hxg5 {[%clk 0:05:54]}  Rg7 {[%clk 0:05:55]} 30. Rf1 {[%clk 0:05:46]}  Rxg5 {[%clk 0:05:53]} 31. g4 {[%clk 0:05:44]}  f4 {[%clk 0:05:52]} 32. Rfxf4 {[%clk 0:05:44]}  Rxe5 {[%clk 0:05:43]} 33. Rf2 {[%clk 0:04:58]}  Rf8 {[%clk 0:05:28]} 34. Rxf8+ {[%clk 0:04:08]}  Kxf8 {[%clk 0:05:27]} 35. Bg2 {[%clk 0:04:09]}  Kf7 {[%clk 0:05:02]} 36. Kg3 {[%clk 0:03:17]}  Re3+ {[%clk 0:04:55]} 37. Kh4 {[%clk 0:03:15]}  Re2 {[%clk 0:04:49]} 38. Bxd5 {[%clk 0:03:07]}  exd5 {[%clk 0:04:12]} 39. b4 {[%clk 0:02:56]}  a4 {[%clk 0:03:37]} 40. Rf4+ {[%clk 0:02:48]}  Kg6 {[%clk 0:03:24]} 41. g5 {[%clk 0:02:47]}  Rh2+ {[%clk 0:03:21]} 42. Kg3 {[%clk 0:02:48]}  Kxg5 {[%clk 0:03:08]} 43. Rf8 {[%clk 0:02:40]}  Ra2 {[%clk 0:03:07]} 44. Rc8 {[%clk 0:02:37]}  Rxa3+ {[%clk 0:03:07]} 45. Kf2 {[%clk 0:02:39]}  Kf4 {[%clk 0:02:54]} 46. Rxc6 {[%clk 0:02:40]}  Ra2+ {[%clk 0:02:49]} 47. Ke1 {[%clk 0:02:40]}  Rb2 {[%clk 0:02:48]} 48. Rd6 {[%clk 0:02:40]}  a3 {[%clk 0:02:38]} 49. Rxd5 {[%clk 0:02:40]}  a2 {[%clk 0:02:38]} 50. Rd1 {[%clk 0:02:42]}  Rb1 {[%clk 0:02:38]} 0-1


[Site "Internet"]

[Event "Chessable Masters - Torneo preliminare"]
[White "Xu, Yinglun"]
[Black "Drozdowski, Kacper"]
[WhiteFideId "8604940"]
[BlackFideId "1136720"]
[WhiteElo "2523"]
[BlackElo "2472"]
[Result "1/2-1/2"]
[Round "7"]
[TimeControl "600+2"]
[Date "2023.03.13"]
[WhiteClock "0:00:10"]
[BlackClock "0:00:13"]

1. d4 {[%clk 0:10:00]}  d5 {[%clk 0:10:00]} 2. c4 {[%clk 0:10:02]}  c6 {[%clk 0:10:01]} 3. cxd5 {[%clk 0:10:02]}  cxd5 {[%clk 0:10:02]} 4. Nc3 {[%clk 0:10:04]}  Nc6 {[%clk 0:10:04]} 5. Bf4 {[%clk 0:10:06]}  Nf6 {[%clk 0:10:01]} 6. e3 {[%clk 0:10:07]}  a6 {[%clk 0:09:50]} 7. Be2 {[%clk 0:10:07]}  Bf5 {[%clk 0:09:48]} 8. Nf3 {[%clk 0:10:09]}  Rc8 {[%clk 0:09:41]} 9. O-O {[%clk 0:10:00]}  e6 {[%clk 0:09:01]} 10. Qb3 {[%clk 0:09:43]}  Bb4 {[%clk 0:07:07]} 11. Ne5 {[%clk 0:07:45]}  Qe7 {[%clk 0:06:28]} 12. Rfc1 {[%clk 0:06:28]}  O-O {[%clk 0:06:20]} 13. Na4 {[%clk 0:05:18]}  Nxe5 {[%clk 0:05:08]} 14. Bxe5 {[%clk 0:05:18]}  Ne4 {[%clk 0:04:55]} 15. Nb6 {[%clk 0:04:45]}  Rxc1+ {[%clk 0:04:52]} 16. Rxc1 {[%clk 0:04:46]}  Bd2 {[%clk 0:03:27]} 17. Rc7 {[%clk 0:03:54]}  Qh4 {[%clk 0:03:27]} 18. Bg3 {[%clk 0:03:51]}  Nxg3 {[%clk 0:02:20]} 19. hxg3 {[%clk 0:03:51]}  Qe4 {[%clk 0:02:04]} 20. Qd1 {[%clk 0:03:51]}  Bxe3 {[%clk 0:01:50]} 21. fxe3 {[%clk 0:03:47]}  Qxe3+ {[%clk 0:01:52]} 22. Kh2 {[%clk 0:03:46]}  Qh6+ {[%clk 0:01:51]} 23. Kg1 {[%clk 0:03:45]}  Qe3+ {[%clk 0:01:51]} 24. Kf1 {[%clk 0:03:30]}  Qxg3 {[%clk 0:01:49]} 25. Rxb7 {[%clk 0:03:23]}  Qf4+ {[%clk 0:01:44]} 26. Bf3 {[%clk 0:02:56]}  g5 {[%clk 0:01:40]} 27. Kf2 {[%clk 0:01:26]}  g4 {[%clk 0:01:24]} 28. g3 {[%clk 0:01:27]}  Qxf3+ {[%clk 0:01:19]} 29. Qxf3 {[%clk 0:01:26]}  gxf3 {[%clk 0:01:21]} 30. Kxf3 {[%clk 0:01:23]}  Kg7 {[%clk 0:01:04]} 31. Kf4 {[%clk 0:01:13]}  h6 {[%clk 0:00:41]} 32. a4 {[%clk 0:01:02]}  Bd3 {[%clk 0:00:34]} 33. b4 {[%clk 0:00:51]}  Rh8 {[%clk 0:00:31]} 34. Nd7 {[%clk 0:00:47]}  Rc8 {[%clk 0:00:17]} 35. Nc5 {[%clk 0:00:28]}  Bf5 {[%clk 0:00:10]} 36. g4 {[%clk 0:00:30]}  Bc2 {[%clk 0:00:10]} 37. Nxe6+ {[%clk 0:00:30]}  Kg6 {[%clk 0:00:11]} 38. Nc5 {[%clk 0:00:31]}  Re8 {[%clk 0:00:07]} 39. Rb6+ {[%clk 0:00:29]}  f6 {[%clk 0:00:09]} 40. Rxa6 {[%clk 0:00:29]}  Re1 {[%clk 0:00:10]} 41. Nd7 {[%clk 0:00:15]}  Re4+ {[%clk 0:00:10]} 42. Kg3 {[%clk 0:00:11]}  Rxd4 {[%clk 0:00:12]} 43. Nxf6 {[%clk 0:00:11]}  Kf7 {[%clk 0:00:09]} 44. Rb6 {[%clk 0:00:12]}  Bxa4 {[%clk 0:00:09]} 45. Nh5 {[%clk 0:00:13]}  Bd1 {[%clk 0:00:10]} 46. Nf4 {[%clk 0:00:14]}  Rd2 {[%clk 0:00:09]} 47. Rxh6 {[%clk 0:00:11]}  d4 {[%clk 0:00:11]} 48. Rd6 {[%clk 0:00:11]}  Ke7 {[%clk 0:00:08]} 49. Rd5 {[%clk 0:00:13]}  Bb3 {[%clk 0:00:09]} 50. Re5+ {[%clk 0:00:13]}  Kd6 {[%clk 0:00:11]} 51. Re8 {[%clk 0:00:14]}  Rd1 {[%clk 0:00:10]} 52. Kf2 {[%clk 0:00:10]}  Rd2+ {[%clk 0:00:10]} 53. Kg3 {[%clk 0:00:11]}  Rd1 {[%clk 0:00:11]} 54. b5 {[%clk 0:00:12]}  Kc5 {[%clk 0:00:12]} 55. Rd8 {[%clk 0:00:07]}  Kxb5 {[%clk 0:00:12]} 56. g5 {[%clk 0:00:09]}  Rg1+ {[%clk 0:00:12]} 57. Kf2 {[%clk 0:00:10]}  Rxg5 {[%clk 0:00:12]} 58. Rxd4 {[%clk 0:00:12]}  Bc4 {[%clk 0:00:12]} 59. Ne2 {[%clk 0:00:08]}  Rf5+ {[%clk 0:00:12]} 60. Rf4 {[%clk 0:00:09]}  Rxf4+ {[%clk 0:00:13]} 61. Nxf4 {[%clk 0:00:10]} 1/2-1/2


[Site "Internet"]

[Event "Chessable Masters - Torneo preliminare"]
[White "Drygalov, Sergey"]
[Black "Vaibhav, Suri"]
[WhiteFideId "24171743"]
[BlackFideId "5045185"]
[WhiteElo "2461"]
[BlackElo "2543"]
[Result "0-1"]
[Round "7"]
[TimeControl "600+2"]
[Date "2023.03.13"]
[WhiteClock "0:00:35"]
[BlackClock "0:00:24"]

1. d4 {[%clk 0:10:00]}  Nf6 {[%clk 0:09:59]} 2. c4 {[%clk 0:10:00]}  e6 {[%clk 0:09:59]} 3. Nf3 {[%clk 0:10:00]}  d5 {[%clk 0:09:59]} 4. Nc3 {[%clk 0:10:02]}  h6 {[%clk 0:09:59]} 5. Bf4 {[%clk 0:10:01]}  Bd6 {[%clk 0:10:00]} 6. e3 {[%clk 0:10:00]}  O-O {[%clk 0:09:59]} 7. Bd3 {[%clk 0:10:01]}  Bxf4 {[%clk 0:09:19]} 8. exf4 {[%clk 0:10:02]}  dxc4 {[%clk 0:09:21]} 9. Bxc4 {[%clk 0:10:03]}  b6 {[%clk 0:09:12]} 10. O-O {[%clk 0:10:04]}  Bb7 {[%clk 0:09:13]} 11. Ne5 {[%clk 0:10:05]}  Nc6 {[%clk 0:09:10]} 12. Ne2 {[%clk 0:09:57]}  Qd6 {[%clk 0:08:50]} 13. Rc1 {[%clk 0:09:46]}  Rfd8 {[%clk 0:08:35]} 14. Bb3 {[%clk 0:09:46]}  Rac8 {[%clk 0:08:14]} 15. Re1 {[%clk 0:09:46]}  Na5 {[%clk 0:07:27]} 16. Ba4 {[%clk 0:09:28]}  Qd5 {[%clk 0:05:02]} 17. f3 {[%clk 0:09:17]}  c5 {[%clk 0:05:02]} 18. Qd3 {[%clk 0:08:28]}  Qxa2 {[%clk 0:04:47]} 19. b3 {[%clk 0:07:31]}  c4 {[%clk 0:04:10]} 20. Nxc4 {[%clk 0:07:17]}  Nxc4 {[%clk 0:04:05]} 21. Rxc4 {[%clk 0:07:09]}  Ba6 {[%clk 0:03:49]} 22. Rxc8 {[%clk 0:06:54]}  Bxd3 {[%clk 0:03:50]} 23. Rxd8+ {[%clk 0:06:56]}  Kh7 {[%clk 0:03:52]} 24. Nc1 {[%clk 0:06:56]}  Qd2 {[%clk 0:03:45]} 25. Nxd3 {[%clk 0:06:54]}  Qxd3 {[%clk 0:03:46]} 26. Bc6 {[%clk 0:06:09]}  Qxb3 {[%clk 0:03:43]} 27. Be4+ {[%clk 0:05:34]}  g6 {[%clk 0:03:38]} 28. h4 {[%clk 0:05:17]}  a5 {[%clk 0:03:28]} 29. Kh2 {[%clk 0:05:02]}  a4 {[%clk 0:03:16]} 30. Rc1 {[%clk 0:05:02]}  Qe3 {[%clk 0:03:17]} 31. Rdc8 {[%clk 0:04:16]}  Qxf4+ {[%clk 0:03:12]} 32. g3 {[%clk 0:04:18]}  Qd2+ {[%clk 0:03:13]} 33. Kh3 {[%clk 0:04:19]}  Kg7 {[%clk 0:02:33]} 34. Bb1 {[%clk 0:04:18]}  Nd5 {[%clk 0:02:25]} 35. Be4 {[%clk 0:04:01]}  Ne3 {[%clk 0:02:16]} 36. f4 {[%clk 0:04:00]}  Qxd4 {[%clk 0:01:41]} 37. Bf3 {[%clk 0:04:00]}  a3 {[%clk 0:01:40]} 38. Ra8 {[%clk 0:03:58]}  Qb2 {[%clk 0:00:46]} 39. Rc7 {[%clk 0:03:51]}  Qf2 {[%clk 0:00:43]} 40. Raa7 {[%clk 0:02:15]}  Nf5 {[%clk 0:00:44]} 41. Rxf7+ {[%clk 0:02:10]}  Kg8 {[%clk 0:00:45]} 42. Rxf5 {[%clk 0:02:11]}  gxf5 {[%clk 0:00:47]} 43. Rxa3 {[%clk 0:02:10]}  Qf1+ {[%clk 0:00:42]} 44. Kh2 {[%clk 0:02:10]}  b5 {[%clk 0:00:43]} 45. Bh5 {[%clk 0:02:02]}  Kf8 {[%clk 0:00:31]} 46. Rb3 {[%clk 0:01:04]}  Ke7 {[%clk 0:00:32]} 47. Rb2 {[%clk 0:01:01]}  Kd6 {[%clk 0:00:26]} 48. Be2 {[%clk 0:00:53]}  Qf2+ {[%clk 0:00:27]} 49. Kh3 {[%clk 0:00:55]}  b4 {[%clk 0:00:27]} 50. Rd2+ {[%clk 0:00:49]}  Kc5 {[%clk 0:00:24]} 51. Rc2+ {[%clk 0:00:51]}  Kd4 {[%clk 0:00:19]} 52. Rc4+ {[%clk 0:00:45]}  Ke3 {[%clk 0:00:20]} 53. Rc6 {[%clk 0:00:44]}  Kxe2 {[%clk 0:00:19]} 54. Rc2+ {[%clk 0:00:28]}  Kf3 {[%clk 0:00:20]} 55. Rxf2+ {[%clk 0:00:29]}  Kxf2 {[%clk 0:00:22]} 56. g4 {[%clk 0:00:31]}  b3 {[%clk 0:00:21]} 57. g5 {[%clk 0:00:32]}  b2 {[%clk 0:00:22]} 58. g6 {[%clk 0:00:33]}  b1=Q {[%clk 0:00:23]} 59. g7 {[%clk 0:00:35]}  Qh1# {[%clk 0:00:24]} 0-1


[Site "Internet"]

[Event "Chessable Masters - Torneo preliminare"]
[White "Makhnev, Denis"]
[Black "Neiksans, Arturs"]
[WhiteFideId "13707647"]
[BlackFideId "11601388"]
[WhiteElo "2505"]
[BlackElo "2553"]
[Result "1-0"]
[Round "7"]
[TimeControl "600+2"]
[Date "2023.03.13"]
[WhiteClock "0:00:08"]
[BlackClock "0:01:09"]

1. d4 {[%clk 0:10:01]}  f5 {[%clk 0:09:59]} 2. g3 {[%clk 0:10:00]}  Nf6 {[%clk 0:10:00]} 3. Bg2 {[%clk 0:10:01]}  g6 {[%clk 0:10:01]} 4. Nh3 {[%clk 0:10:01]}  Nc6 {[%clk 0:09:59]} 5. d5 {[%clk 0:09:49]}  Ne5 {[%clk 0:10:00]} 6. Nf4 {[%clk 0:09:50]}  c6 {[%clk 0:09:59]} 7. Nc3 {[%clk 0:09:50]}  cxd5 {[%clk 0:09:34]} 8. Ncxd5 {[%clk 0:09:38]}  Nxd5 {[%clk 0:09:31]} 9. Qxd5 {[%clk 0:08:23]}  Bg7 {[%clk 0:09:30]} 10. Bd2 {[%clk 0:07:32]}  e6 {[%clk 0:09:27]} 11. Qb3 {[%clk 0:07:32]}  d5 {[%clk 0:09:18]} 12. Bc3 {[%clk 0:07:32]}  O-O {[%clk 0:09:15]} 13. h4 {[%clk 0:07:31]}  Nf7 {[%clk 0:08:39]} 14. Bxg7 {[%clk 0:07:13]}  Kxg7 {[%clk 0:08:40]} 15. O-O-O {[%clk 0:07:14]}  Qf6 {[%clk 0:08:03]} 16. h5 {[%clk 0:06:15]}  g5 {[%clk 0:07:47]} 17. h6+ {[%clk 0:06:15]}  Kg8 {[%clk 0:07:47]} 18. Nh5 {[%clk 0:06:16]}  Qxh6 {[%clk 0:07:40]} 19. Qc3 {[%clk 0:06:17]}  d4 {[%clk 0:07:08]} 20. Rxd4 {[%clk 0:05:26]}  e5 {[%clk 0:07:06]} 21. Rb4 {[%clk 0:05:10]}  Qd6 {[%clk 0:06:53]} 22. f4 {[%clk 0:03:34]}  Rd8 {[%clk 0:06:48]} 23. fxe5 {[%clk 0:03:21]}  Nxe5 {[%clk 0:06:47]} 24. Bd5+ {[%clk 0:02:51]}  Kf8 {[%clk 0:06:41]} 25. e4 {[%clk 0:02:31]}  Bd7 {[%clk 0:06:12]} 26. Bxb7 {[%clk 0:01:49]}  Rab8 {[%clk 0:05:58]} 27. Rd4 {[%clk 0:01:47]}  Qe7 {[%clk 0:05:43]} 28. Rd5 {[%clk 0:01:47]}  Re8 {[%clk 0:05:39]} 29. Qc7 {[%clk 0:00:32]}  Qb4 {[%clk 0:05:04]} 30. Rxe5 {[%clk 0:00:06]}  Rxb7 {[%clk 0:05:05]} 31. Rxe8+ {[%clk 0:00:04]}  Kxe8 {[%clk 0:05:07]} 32. Qe5+ {[%clk 0:00:06]}  Kd8 {[%clk 0:05:05]} 33. Nf6 {[%clk 0:00:03]}  Kc8 {[%clk 0:02:47]} 34. Rd1 {[%clk 0:00:03]}  Rb5 {[%clk 0:02:27]} 35. Nd5 {[%clk 0:00:04]}  Qc4 {[%clk 0:02:19]} 36. Ne7+ {[%clk 0:00:04]}  Kd8 {[%clk 0:02:15]} 37. Qf6 {[%clk 0:00:04]}  Qxe4 {[%clk 0:01:47]} 38. Nc6+ {[%clk 0:00:03]}  Kc7 {[%clk 0:01:48]} 39. Qd6+ {[%clk 0:00:04]}  Kb6 {[%clk 0:01:50]} 40. Nd4+ {[%clk 0:00:04]}  Bc6 {[%clk 0:01:42]} 41. Nxb5 {[%clk 0:00:05]}  Kxb5 {[%clk 0:01:43]} 42. b3 {[%clk 0:00:07]}  f4 {[%clk 0:01:39]} 43. a4+ {[%clk 0:00:06]}  Ka6 {[%clk 0:01:36]} 44. gxf4 {[%clk 0:00:07]}  gxf4 {[%clk 0:01:37]} 45. Rd4 {[%clk 0:00:07]}  Qg6 {[%clk 0:01:08]} 46. Qxg6 {[%clk 0:00:07]}  hxg6 {[%clk 0:01:09]} 47. Rxf4 {[%clk 0:00:08]} 1-0


[Site "Internet"]

[Event "Chessable Masters - Torneo preliminare"]
[White "Matamoros Franco, Carlos S."]
[Black "Svane, Rasmus"]
[WhiteFideId "3600017"]
[BlackFideId "4657101"]
[WhiteElo "2407"]
[BlackElo "2621"]
[Result "0-1"]
[Round "7"]
[TimeControl "600+2"]
[Date "2023.03.13"]
[WhiteClock "0:00:45"]
[BlackClock "0:00:08"]

1. c4 {[%clk 0:10:00]}  Nf6 {[%clk 0:09:58]} 2. g3 {[%clk 0:10:00]}  e6 {[%clk 0:09:34]} 3. Bg2 {[%clk 0:10:00]}  d5 {[%clk 0:09:35]} 4. Nf3 {[%clk 0:10:01]}  d4 {[%clk 0:09:29]} 5. O-O {[%clk 0:10:01]}  c5 {[%clk 0:09:27]} 6. e3 {[%clk 0:10:03]}  Nc6 {[%clk 0:09:27]} 7. d3 {[%clk 0:10:04]}  h6 {[%clk 0:09:28]} 8. Re1 {[%clk 0:10:05]}  Bd6 {[%clk 0:09:19]} 9. Na3 {[%clk 0:10:05]}  O-O {[%clk 0:09:05]} 10. Nc2 {[%clk 0:10:05]}  e5 {[%clk 0:08:58]} 11. exd4 {[%clk 0:09:31]}  exd4 {[%clk 0:08:49]} 12. b4 {[%clk 0:09:21]}  cxb4 {[%clk 0:07:33]} 13. Ncxd4 {[%clk 0:09:17]}  Nxd4 {[%clk 0:07:33]} 14. Nxd4 {[%clk 0:09:19]}  Be5 {[%clk 0:07:22]} 15. Nb3 {[%clk 0:07:23]}  Bg4 {[%clk 0:06:57]} 16. f3 {[%clk 0:06:42]}  Bxa1 {[%clk 0:06:55]} 17. fxg4 {[%clk 0:06:43]}  Bc3 {[%clk 0:06:46]} 18. Rf1 {[%clk 0:06:40]}  a5 {[%clk 0:06:44]} 19. g5 {[%clk 0:06:14]}  hxg5 {[%clk 0:06:40]} 20. Bxg5 {[%clk 0:06:16]}  a4 {[%clk 0:06:39]} 21. Nc1 {[%clk 0:06:17]}  Ra5 {[%clk 0:06:20]} 22. h4 {[%clk 0:05:39]}  Qd4+ {[%clk 0:04:40]} 23. Kh1 {[%clk 0:05:32]}  Ng4 {[%clk 0:03:42]} 24. Qf3 {[%clk 0:05:24]}  Ne5 {[%clk 0:03:04]} 25. Qxb7 {[%clk 0:05:21]}  Nxd3 {[%clk 0:03:03]} 26. Nxd3 {[%clk 0:04:06]}  Qxd3 {[%clk 0:03:00]} 27. Be7 {[%clk 0:04:06]}  Qxg3 {[%clk 0:00:39]} 28. Rf3 {[%clk 0:01:33]}  Qb8 {[%clk 0:00:39]} 29. Qd7 {[%clk 0:01:34]}  Ra7 {[%clk 0:00:22]} 30. Qd6 {[%clk 0:00:59]}  Qxd6 {[%clk 0:00:23]} 31. Bxd6 {[%clk 0:01:01]}  Re8 {[%clk 0:00:23]} 32. c5 {[%clk 0:01:01]}  Re1+ {[%clk 0:00:20]} 33. Kh2 {[%clk 0:01:01]}  Be5+ {[%clk 0:00:20]} 34. Kh3 {[%clk 0:00:57]}  Bxd6 {[%clk 0:00:12]} 35. cxd6 {[%clk 0:00:59]}  b3 {[%clk 0:00:10]} 36. axb3 {[%clk 0:00:53]}  a3 {[%clk 0:00:11]} 37. Rf2 {[%clk 0:00:44]}  a2 {[%clk 0:00:07]} 38. d7 {[%clk 0:00:45]}  Rd1 {[%clk 0:00:08]} 0-1


[Site "Internet"]

[Event "Chessable Masters - Torneo preliminare"]
[White "Sourath, Biswas"]
[Black "Darini, Pouria"]
[WhiteFideId "35091484"]
[BlackFideId "12502200"]
[WhiteElo "2138"]
[BlackElo "2573"]
[Result "0-1"]
[Round "7"]
[TimeControl "600+2"]
[Date "2023.03.13"]
[WhiteClock "0:00:16"]
[BlackClock "0:00:19"]

1. d4 {[%clk 0:10:01]}  Nf6 {[%clk 0:10:01]} 2. Bf4 {[%clk 0:10:02]}  d5 {[%clk 0:10:01]} 3. e3 {[%clk 0:10:03]}  c5 {[%clk 0:10:02]} 4. Nf3 {[%clk 0:10:05]}  e6 {[%clk 0:10:00]} 5. c3 {[%clk 0:10:04]}  Nc6 {[%clk 0:10:01]} 6. Nbd2 {[%clk 0:10:05]}  cxd4 {[%clk 0:10:03]} 7. exd4 {[%clk 0:10:06]}  Nh5 {[%clk 0:10:04]} 8. Be3 {[%clk 0:10:07]}  Bd6 {[%clk 0:10:06]} 9. Ne5 {[%clk 0:10:09]}  Nf6 {[%clk 0:09:59]} 10. f4 {[%clk 0:10:07]}  Qb6 {[%clk 0:09:59]} 11. Qb3 {[%clk 0:09:34]}  Ng8 {[%clk 0:10:00]} 12. Bd3 {[%clk 0:09:15]}  Nge7 {[%clk 0:09:57]} 13. O-O {[%clk 0:09:15]}  f6 {[%clk 0:09:37]} 14. Nef3 {[%clk 0:09:16]}  Nf5 {[%clk 0:09:32]} 15. Bxf5 {[%clk 0:09:17]}  Qxb3 {[%clk 0:09:32]} 16. axb3 {[%clk 0:09:15]}  exf5 {[%clk 0:09:34]} 17. g3 {[%clk 0:09:09]}  Be6 {[%clk 0:08:26]} 18. b4 {[%clk 0:09:06]}  Kd7 {[%clk 0:07:47]} 19. Ne1 {[%clk 0:09:06]}  b6 {[%clk 0:07:21]} 20. b5 {[%clk 0:08:16]}  Na5 {[%clk 0:07:20]} 21. Nd3 {[%clk 0:07:27]}  Rhc8 {[%clk 0:06:37]} 22. Nc5+ {[%clk 0:07:22]}  bxc5 {[%clk 0:06:27]} 23. Rxa5 {[%clk 0:07:23]}  Bc7 {[%clk 0:05:31]} 24. Ra6 {[%clk 0:07:21]}  c4 {[%clk 0:05:20]} 25. b3 {[%clk 0:06:21]}  Bb6 {[%clk 0:04:40]} 26. bxc4 {[%clk 0:06:15]}  dxc4 {[%clk 0:04:41]} 27. Rb1 {[%clk 0:06:00]}  Rc7 {[%clk 0:04:00]} 28. Kf2 {[%clk 0:05:47]}  Bd5 {[%clk 0:03:59]} 29. Ra4 {[%clk 0:05:36]}  Rac8 {[%clk 0:03:52]} 30. Nf1 {[%clk 0:05:17]}  Be4 {[%clk 0:02:33]} 31. Rb2 {[%clk 0:05:09]}  Bd3 {[%clk 0:02:34]} 32. Nd2 {[%clk 0:05:07]}  Kd6 {[%clk 0:02:31]} 33. Nf3 {[%clk 0:03:46]}  Re8 {[%clk 0:02:27]} 34. Ne1 {[%clk 0:02:26]}  Rce7 {[%clk 0:02:26]} 35. Ng2 {[%clk 0:01:01]}  Kd5 {[%clk 0:01:57]} 36. Ra1 {[%clk 0:00:50]}  Be4 {[%clk 0:01:51]} 37. Ne1 {[%clk 0:00:51]}  h6 {[%clk 0:01:24]} 38. h4 {[%clk 0:00:28]}  g6 {[%clk 0:01:25]} 39. Raa2 {[%clk 0:00:22]}  Bb1 {[%clk 0:01:00]} 40. Rxb1 {[%clk 0:00:23]}  Rxe3 {[%clk 0:01:02]} 41. Rc1 {[%clk 0:00:25]}  Rxc3 {[%clk 0:01:03]} 42. Rxc3 {[%clk 0:00:22]}  Bxd4+ {[%clk 0:01:04]} 43. Kf3 {[%clk 0:00:23]}  Bxc3 {[%clk 0:00:53]} 44. Nc2 {[%clk 0:00:24]}  Re7 {[%clk 0:00:40]} 45. Ra6 {[%clk 0:00:24]}  Kc5 {[%clk 0:00:36]} 46. Na3 {[%clk 0:00:22]}  Kb4 {[%clk 0:00:29]} 47. h5 {[%clk 0:00:13]}  g5 {[%clk 0:00:19]} 48. fxg5 {[%clk 0:00:14]}  fxg5 {[%clk 0:00:20]} 49. Nc2+ {[%clk 0:00:16]}  Kb3 {[%clk 0:00:20]} 50. Ne3 {[%clk 0:00:16]}  g4+ {[%clk 0:00:19]} 0-1


[Site "Internet"]